fUSD/lending_fUSD_20240521
["ID","MTS","AMOUNT","RATE_DAILY","PERIOD"]
[327704728,1716330656135,-962.2,0.0003315,6]
[327704729,1716330656144,-645.4,0.0003315,6]
[327704730,1716330656154,-500.0,0.0003315,6]
[327704731,1716330656165,-500.0,0.0003315,6]
[327704732,1716330656174,-500.0,0.0003315,6]
[327704733,1716330656184,-1188.21,0.0003315,6]
[327704734,1716330656193,-500.0,0.0003315,6]
[327704735,1716330656203,-579.42,0.0003315,6]
[327704736,1716330656212,-562.99,0.0003315,6]
[327704737,1716330656221,-630.75,0.0003315,6]
[327704738,1716330656230,-500.0,0.0003315,6]
[327704739,1716330656239,-690.64,0.0003315,6]
[327704740,1716330656249,-500.0,0.0003315,6]
[327704741,1716330656259,-2844.34,0.0003315,6]
[327704742,1716330656270,-500.0,0.0003315,6]
[327704743,1716330656282,-756.94,0.0003315,6]
[327704744,1716330656291,-500.0,0.0003315,6]
[327704745,1716330656301,-878.11,0.0003315,6]
[327704746,1716330656310,-500.0,0.0003315,6]
[327704747,1716330656320,-533.1,0.0003315,6]
[327704748,1716330656330,-500.0,0.0003315,6]
[327704749,1716330656339,-500.0,0.0003315,6]
[327704750,1716330656348,-2346.81,0.0003315,6]
[327704751,1716330656402,-1061.92,0.0003315,6]
[327704752,1716330656412,-500.0,0.0003315,6]
[327704753,1716330656421,-603.1,0.0003315,6]
[327704754,1716330656432,-678.87,0.0003315,6]
[327704755,1716330656443,-683.48,0.0003315,6]
[327704756,1716330656452,-1131.45,0.0003315,6]
[327704757,1716330656461,-500.0,0.0003315,6]
[327704758,1716330656470,-10687.0,0.0003315,6]
[327704759,1716330656479,-301.39226747,0.0003315,6]
[327704760,1716330656488,-2733.01,0.0003315,6]
[327704761,1716330656497,-500.0,0.0003315,6]
[327704762,1716330656506,-500.0,0.0003315,6]
[327704763,1716330656515,-1035.99,0.0003315,6]
[327704764,1716330656524,-1127.8,0.0003315,6]
[327704765,1716330656535,-500.0,0.0003315,6]
[327704766,1716330656544,-500.0,0.0003315,6]
[327704767,1716330656554,-954.96,0.0003315,6]
[327704768,1716330656562,-602.8,0.0003315,6]
[327704769,1716330656571,-500.0,0.0003315,6]
[327704770,1716330656581,-2414.4,0.0003315,6]
[327704771,1716330656591,-500.0,0.0003315,6]
[327704772,1716330656600,-158.03224443,0.00033188,7]
[327704773,1716330656609,-157.052206,0.00033248,34]
[327704774,1716330656619,-1197.41049514,0.00033371,5]
[327704775,1716330656628,-152.54522824,0.00033391,7]
[327704776,1716330656637,-313.21,0.00033396,2]
[327704777,1716330656646,-549.24,0.00033424,6]
[327704778,1716330656655,-500.0,0.00033424,6]
[327704779,1716330656664,-309.80470925,0.00033424,6]
[327704780,1716330656673,-500.0,0.00033424,6]
[327704781,1716330656682,-500.0,0.00033424,6]
[327704782,1716330656691,-500.0,0.00033424,6]
[327704783,1716330656700,-500.0,0.00033424,6]
[327704784,1716330656709,-500.0,0.00033424,6]
[327704785,1716330656719,-500.0,0.00033424,6]
[327704786,1716330656731,-587.1,0.00033424,6]
[327704787,1716330656740,-500.0,0.00033424,6]
[327704788,1716330656750,-1028.32,0.00033424,6]
[327704789,1716330656761,-628.86,0.00033424,6]
[327704790,1716330656769,-500.0,0.00033424,6]
[327704791,1716330656779,-500.0,0.00033424,6]
[327704792,1716330656789,-698.35,0.00033424,6]
[327704793,1716330656798,-817.87,0.00033424,6]
[327704794,1716330656807,-1529.98,0.00033424,6]
[327704795,1716330656816,-7703.78,0.00033424,6]
[327704796,1716330656825,-4254.81,0.00033424,6]
[327704797,1716330656834,-500.0,0.00033424,6]
[327704798,1716330656844,-1676.45,0.00033424,6]
[327704799,1716330656853,-1312.87,0.00033424,6]
[327704800,1716330656862,-698.95,0.00033424,6]
[327704801,1716330656871,-500.0,0.00033424,6]
[327704802,1716330656880,-315.49497002,0.00033424,6]
[327704803,1716330656889,-579.22,0.00033424,6]
[327704804,1716330656898,-1366.16,0.00033424,6]
[327704805,1716330656907,-577.7,0.00033424,6]
[327704806,1716330656916,-500.0,0.00033424,6]
[327704807,1716330656926,-500.0,0.00033424,6]
[327704808,1716330656935,-500.0,0.00033424,6]
[327704809,1716330656945,-576.47,0.00033424,6]
[327704810,1716330656955,-576.85,0.00033424,6]
[327704811,1716330656964,-4027.79,0.00033424,6]
[327704812,1716330656973,-3926.42,0.00033424,6]
[327704813,1716330656982,-500.0,0.00033424,6]
[327704814,1716330656992,-500.0,0.00033424,6]
[327704815,1716330657001,-500.0,0.00033424,6]
[327704816,1716330657010,-500.0,0.00033424,6]
[327704817,1716330657019,-500.0,0.00033424,6]
[327704818,1716330657028,-500.0,0.00033424,6]
[327704819,1716330657039,-559.94,0.00033424,6]
[327704820,1716330657048,-500.0,0.00033424,6]
[327704821,1716330657057,-500.0,0.00033424,6]
[327704822,1716330657066,-500.0,0.00033424,6]
[327704823,1716330657075,-787.25,0.00033424,6]
[327704824,1716330657084,-1823.06,0.00033424,6]
[327704825,1716330657094,-618.35,0.00033424,6]
[327704826,1716330657103,-1467.8,0.00033424,6]
[327704827,1716330657113,-962.2,0.00033424,6]
[327704828,1716330657122,-645.4,0.00033424,6]
[327704829,1716330657131,-500.0,0.00033424,6]
[327704830,1716330657142,-500.0,0.00033424,6]
[327704831,1716330657151,-500.0,0.00033424,6]
[327704832,1716330657161,-1188.21,0.00033424,6]
[327704833,1716330657171,-260.85124588,0.00033424,6]
[327704834,1716330657181,-579.42,0.00033424,6]
[327704835,1716330657190,-562.99,0.00033424,6]
[327704836,1716330657199,-630.75,0.00033424,6]
[327704837,1716330657210,-500.0,0.00033424,6]
[327704838,1716330657220,-690.64,0.00033424,6]
[327704839,1716330657230,-500.0,0.00033424,6]
[327704840,1716330657240,-2844.34,0.00033424,6]
[327704841,1716330657250,-500.0,0.00033424,6]
[327704842,1716330657259,-756.94,0.00033424,6]
[327704843,1716330657269,-500.0,0.00033424,6]
[327704844,1716330657279,-878.11,0.00033424,6]
[327704845,1716330657290,-500.0,0.00033424,6]
[327704846,1716330657299,-533.1,0.00033424,6]
[327704847,1716330657309,-500.0,0.00033424,6]
[327704848,1716330657318,-500.0,0.00033424,6]
[327704849,1716330657327,-2346.81,0.00033424,6]
[327704850,1716330657338,-1061.92,0.00033424,6]
[327704851,1716330657347,-500.0,0.00033424,6]
[327704852,1716330657357,-603.1,0.00033424,6]
[327704853,1716330657366,-678.87,0.00033424,6]
[327704854,1716330657379,-683.48,0.00033424,6]
[327704855,1716330657388,-1131.45,0.00033424,6]
[327704856,1716330657397,-500.0,0.00033424,6]
[327704857,1716330657407,-10687.0,0.00033424,6]
[327704858,1716330657417,-2733.01,0.00033424,6]
[327704859,1716330657427,-500.0,0.00033424,6]
[327704860,1716330657436,-500.0,0.00033424,6]
[327704861,1716330657446,-1035.99,0.00033424,6]
[327704862,1716330657460,-1127.8,0.00033424,6]
[327704863,1716330657471,-500.0,0.00033424,6]
[327704864,1716330657481,-500.0,0.00033424,6]
[327704865,1716330657490,-954.96,0.00033424,6]
[327704866,1716330657499,-602.8,0.00033424,6]
[327704867,1716330657508,-500.0,0.00033424,6]
[327704868,1716330657517,-2414.4,0.00033424,6]
[327704869,1716330657529,-500.0,0.00033424,6]
[327704870,1716330657541,-157.052206,0.00033448,34]
[327704871,1716330657550,-339.17922691,0.0003346,4]
[327704872,1716330657558,-399.04,0.000335,2]
[327704873,1716330657568,-332.1,0.000335,2]
[327704874,1716330657577,-153.38,0.000335,2]
[327704875,1716330657586,-153.38,0.000335,2]
[327704876,1716330657595,-153.38,0.000335,2]
[327704877,1716330657604,-153.38,0.000335,2]
[327704878,1716330657613,-153.38,0.000335,2]
[327704879,1716330657622,-153.38,0.000335,2]
[327704880,1716330657631,-153.38,0.000335,2]
[327704881,1716330657640,-153.38,0.000335,2]
[327704882,1716330657651,-153.38,0.000335,2]
[327704883,1716330657660,-153.38,0.000335,2]
[327704884,1716330657671,-3330.71,0.000335,2]
[327704885,1716330657680,-3330.71,0.000335,2]
[327704886,1716330657688,-3330.71,0.000335,2]
[327704887,1716330657697,-3330.71,0.000335,2]
[327704888,1716330657706,-3330.71,0.000335,2]
[327704889,1716330657715,-3330.71,0.000335,2]
[327704890,1716330657723,-3330.71,0.000335,2]
[327704891,1716330657733,-3330.71,0.000335,2]
[327704892,1716330657742,-3330.71,0.000335,2]
[327704893,1716330657750,-3330.71,0.000335,2]
[327704894,1716330657759,-3330.71,0.000335,2]
[327704895,1716330657768,-3330.71,0.000335,2]
[327704896,1716330657776,-3330.71,0.000335,2]
[327704897,1716330657787,-3330.71,0.000335,2]
[327704898,1716330657796,-3330.71,0.000335,2]
[327704899,1716330657805,-3330.71,0.000335,2]
[327704900,1716330657813,-3330.71,0.000335,2]
[327704901,1716330657822,-3330.71,0.000335,2]
[327704902,1716330657831,-3330.71,0.000335,2]
[327704903,1716330657840,-3330.71,0.000335,2]
[327704904,1716330657849,-150.0,0.00033538,120]
[327704905,1716330657859,-460.48553823,0.000336,2]
[327704906,1716330657868,-158.03224443,0.0003363,7]
[327704907,1716330657878,-157.052206,0.00033648,34]
[327704908,1716330657887,-299.40777896,0.00033696,4]
[327704909,1716330657897,-549.24,0.00033698,6]
[327704910,1716330657906,-500.0,0.00033698,6]
[327704911,1716330657916,-500.0,0.00033698,6]
[327704912,1716330657926,-358.15910936,0.00033698,6]
[327704913,1716330657935,-500.0,0.00033698,6]
[327704914,1716330657944,-500.0,0.00033698,6]
[327704915,1716330657953,-500.0,0.00033698,6]
[327704916,1716330657962,-254.00738168,0.00033698,6]
[327704917,1716330657971,-587.1,0.00033698,6]
[327704918,1716330657980,-500.0,0.00033698,6]
[327704919,1716330657989,-1028.32,0.00033698,6]
[327704920,1716330657998,-628.86,0.00033698,6]
[327704921,1716330658008,-620.12739977,0.00033698,6]
[327704922,1716330658017,-500.0,0.00033698,6]
[327704923,1716330658026,-698.35,0.00033698,6]
[327704924,1716330658036,-817.87,0.00033698,6]
[327704925,1716330658046,-1529.98,0.00033698,6]
[327704926,1716330658055,-7703.78,0.00033698,6]
[327704927,1716330658064,-4254.81,0.00033698,6]
[327704928,1716330658073,-500.0,0.00033698,6]
[327704929,1716330658081,-1676.45,0.00033698,6]
[327704930,1716330658090,-1312.87,0.00033698,6]
[327704931,1716330658099,-698.95,0.00033698,6]
[327704932,1716330658109,-500.0,0.00033698,6]
[327704933,1716330658118,-579.22,0.00033698,6]
[327704934,1716330658127,-1366.16,0.00033698,6]
[327704935,1716330658136,-577.7,0.00033698,6]
[327704936,1716330658145,-500.0,0.00033698,6]
[327704937,1716330658154,-380.26,0.00033698,6]
[327704938,1716330658163,-500.0,0.00033698,6]
[327704939,1716330658172,-576.47,0.00033698,6]
[327704940,1716330658182,-576.85,0.00033698,6]
[327704941,1716330658191,-4027.79,0.00033698,6]
[327704942,1716330658201,-3926.42,0.00033698,6]
[327704943,1716330658210,-500.0,0.00033698,6]
[327704944,1716330658219,-500.0,0.00033698,6]
[327704945,1716330658228,-500.0,0.00033698,6]
[327704946,1716330658237,-500.0,0.00033698,6]
[327704947,1716330658247,-500.0,0.00033698,6]
[327704948,1716330658256,-500.0,0.00033698,6]
[327704949,1716330658265,-559.94,0.00033698,6]
[327704950,1716330658275,-500.0,0.00033698,6]
[327704951,1716330658284,-546.8040197,0.00033698,6]
[327704952,1716330658294,-500.0,0.00033698,6]
[327704953,1716330658303,-787.25,0.00033698,6]
[327704954,1716330658314,-1823.06,0.00033698,6]
[327704955,1716330658323,-618.35,0.00033698,6]
[327704956,1716330658332,-1467.8,0.00033698,6]
[327704957,1716330658342,-962.2,0.00033698,6]
[327704958,1716330658351,-645.4,0.00033698,6]
[327704959,1716330658366,-500.0,0.00033698,6]
[327704960,1716330658376,-500.0,0.00033698,6]
[327704961,1716330658386,-500.0,0.00033698,6]
[327704962,1716330658399,-1188.21,0.00033698,6]
[327704963,1716330658409,-579.42,0.00033698,6]
[327704964,1716330658418,-562.99,0.00033698,6]
[327704965,1716330658427,-630.75,0.00033698,6]
[327704966,1716330658437,-500.0,0.00033698,6]
[327704967,1716330658447,-690.64,0.00033698,6]
[327704968,1716330658457,-500.0,0.00033698,6]
[327704969,1716330658467,-2844.34,0.00033698,6]
[327704970,1716330658476,-500.0,0.00033698,6]
[327704971,1716330658486,-756.94,0.00033698,6]
[327704972,1716330658495,-500.0,0.00033698,6]
[327704973,1716330658504,-878.11,0.00033698,6]
[327704974,1716330658514,-500.0,0.00033698,6]
[327704975,1716330658523,-533.1,0.00033698,6]
[327704976,1716330658534,-500.0,0.00033698,6]
[327704977,1716330658543,-500.0,0.00033698,6]
[327704978,1716330658553,-2346.81,0.00033698,6]
[327704979,1716330658562,-1061.92,0.00033698,6]
[327704980,1716330658571,-500.0,0.00033698,6]
[327704981,1716330658580,-603.1,0.00033698,6]
[327704982,1716330658589,-678.87,0.00033698,6]
[327704983,1716330658599,-683.48,0.00033698,6]
[327704984,1716330658608,-1131.45,0.00033698,6]
[327704985,1716330658618,-493.13,0.00033698,6]
[327704986,1716330658627,-10687.0,0.00033698,6]
[327704987,1716330658636,-2733.01,0.00033698,6]
[327704988,1716330658647,-500.0,0.00033698,6]
[327704989,1716330658657,-500.0,0.00033698,6]
[327704990,1716330658666,-1035.99,0.00033698,6]
[327704991,1716330658676,-1127.8,0.00033698,6]
[327704992,1716330658685,-500.0,0.00033698,6]
[327704993,1716330658695,-468.44592199,0.00033698,6]
[327704994,1716330658703,-954.96,0.00033698,6]
[327704995,1716330658714,-602.8,0.00033698,6]
[327704996,1716330658723,-500.0,0.00033698,6]
[327704997,1716330658733,-2414.4,0.00033698,6]
[327704998,1716330658742,-500.0,0.00033698,6]
[327704999,1716330658752,-1197.41049514,0.00033709,5]
[327705000,1716330658761,-156.014629,0.0003371,2]
[327705001,1716330658770,-358.582094,0.0003371,2]
[327705002,1716330658780,-3096.80864,0.0003371,2]
[327705003,1716330658790,-185.708529,0.0003371,2]
[327705004,1716330658799,-9295.35583,0.0003371,2]
[327705005,1716330658809,-3842.892483,0.0003371,2]
[327705006,1716330658819,-169.510985,0.0003371,2]
[327705007,1716330658828,-172.190305,0.0003371,2]
[327705008,1716330658837,-9094.62006,0.0003371,2]
[327705009,1716330658847,-172.227896,0.0003371,2]
[327705010,1716330658856,-6063.998608,0.0003371,2]
[327705011,1716330658866,-3588.658871,0.0003371,2]
[327705012,1716330658876,-182.677248,0.0003371,2]
[327705013,1716330658885,-170.751133,0.0003371,2]
[327705014,1716330658894,-3036.470444,0.0003371,2]
[327705015,1716330658904,-183.54652,0.0003371,2]
[327705016,1716330658913,-181.696989,0.0003371,2]
[327705017,1716330658923,-4002.016228,0.0003371,2]
[327705018,1716330658932,-1871.119962,0.0003371,2]
[327705019,1716330658942,-417.94645782,0.00033798,4]
[327705020,1716330658951,-157.052206,0.00033848,34]
[327705021,1716330658961,-301.503636,0.00033877,4]
[327705022,1716330658970,-317.21570948,0.00033878,4]
[327705023,1716330658979,-210.49086009,0.00033878,4]
[327705024,1716330658988,-155.16738635,0.00033878,4]
[327705025,1716330658998,-155.0,0.00033878,4]
[327705026,1716330659010,-156.34146276,0.00033878,4]
[327705027,1716330659020,-155.0,0.00033878,4]
[327705028,1716330659029,-712.5895165,0.00033878,15]
[327705029,1716330659041,-1348.64433981,0.00033878,4]
[327705030,1716330659051,-215.67001062,0.0003391,2]
[327705031,1716330659060,-163.4608692,0.0003391,2]
[327705032,1716330659070,-2497.89693473,0.0003391,2]
[327705033,1716330659080,-2100.0,0.00033965,2]
[327705034,1716330659089,-415.089,0.00033965,7]
[327705035,1716330659099,-155.0,0.0003397,4]
[327705036,1716330659108,-155.13236369,0.0003397,4]
[327705037,1716330659117,-155.0,0.0003397,4]
[327705038,1716330659127,-549.24,0.00033972,6]
[327705039,1716330659136,-370.87894674,0.00033972,6]
[327705040,1716330659145,-506.97066,0.00033972,6]
[327705041,1716330659155,-500.0,0.00033972,6]
[327705042,1716330659164,-335.5,0.00033972,6]
[327705043,1716330659181,-500.0,0.00033972,6]
[327705044,1716330659190,-587.1,0.00033972,6]
[327705045,1716330659199,-417.51146091,0.00033972,6]
[327705046,1716330659209,-1028.32,0.00033972,6]
[327705047,1716330659218,-628.86,0.00033972,6]
[327705048,1716330659228,-500.0,0.00033972,6]
[327705049,1716330659238,-698.35,0.00033972,6]
[327705050,1716330659247,-817.87,0.00033972,6]
[327705051,1716330659257,-1529.98,0.00033972,6]
[327705052,1716330659267,-7703.78,0.00033972,6]
[327705053,1716330659277,-4254.81,0.00033972,6]
[327705054,1716330659287,-500.0,0.00033972,6]
[327705055,1716330659297,-1676.45,0.00033972,6]
[327705056,1716330659306,-1312.87,0.00033972,6]
[327705057,1716330659316,-698.95,0.00033972,6]
[327705058,1716330659325,-201.77799592,0.00033972,6]
[327705059,1716330659335,-579.22,0.00033972,6]
[327705060,1716330659345,-1366.16,0.00033972,6]
[327705061,1716330659354,-577.7,0.00033972,6]
[327705062,1716330659365,-500.0,0.00033972,6]
[327705063,1716330659378,-500.0,0.00033972,6]
[327705064,1716330659389,-576.47,0.00033972,6]
[327705065,1716330659399,-576.85,0.00033972,6]
[327705066,1716330659408,-4027.79,0.00033972,6]
[327705067,1716330659417,-3926.42,0.00033972,6]
[327705068,1716330659426,-500.0,0.00033972,6]
[327705069,1716330659436,-500.0,0.00033972,6]
[327705070,1716330659446,-500.0,0.00033972,6]
[327705071,1716330659457,-500.0,0.00033972,6]
[327705072,1716330659467,-500.0,0.00033972,6]
[327705073,1716330659477,-500.0,0.00033972,6]
[327705074,1716330659486,-559.94,0.00033972,6]
[327705075,1716330659496,-500.0,0.00033972,6]
[327705076,1716330659505,-500.0,0.00033972,6]
[327705077,1716330659514,-787.25,0.00033972,6]
[327705078,1716330659524,-1823.06,0.00033972,6]
[327705079,1716330659534,-618.35,0.00033972,6]
[327705080,1716330659544,-1467.8,0.00033972,6]
[327705081,1716330659554,-962.2,0.00033972,6]
[327705082,1716330659563,-645.4,0.00033972,6]
[327705083,1716330659573,-500.0,0.00033972,6]
[327705084,1716330659583,-500.0,0.00033972,6]
[327705085,1716330659593,-500.0,0.00033972,6]
[327705086,1716330659602,-1188.21,0.00033972,6]
[327705087,1716330659612,-579.42,0.00033972,6]
[327705088,1716330659621,-562.99,0.00033972,6]
[327705089,1716330659630,-630.75,0.00033972,6]
[327705090,1716330659640,-500.0,0.00033972,6]
[327705091,1716330659651,-690.64,0.00033972,6]
[327705092,1716330659661,-494.20195694,0.00033972,6]
[327705093,1716330659672,-2844.34,0.00033972,6]
[327705094,1716330659682,-500.0,0.00033972,6]
[327705095,1716330659693,-756.94,0.00033972,6]
[327705096,1716330659702,-500.0,0.00033972,6]
[327705097,1716330659711,-878.11,0.00033972,6]
[327705098,1716330659721,-500.0,0.00033972,6]
[327705099,1716330659731,-533.1,0.00033972,6]
[327705100,1716330659740,-456.68319454,0.00033972,6]
[327705101,1716330659749,-500.0,0.00033972,6]
[327705102,1716330659759,-2346.81,0.00033972,6]
[327705103,1716330659769,-1061.92,0.00033972,6]
[327705104,1716330659779,-500.0,0.00033972,6]
[327705105,1716330659792,-603.1,0.00033972,6]
[327705106,1716330659801,-678.87,0.00033972,6]
[327705107,1716330659811,-683.48,0.00033972,6]
[327705108,1716330659820,-1131.45,0.00033972,6]
[327705109,1716330659830,-10687.0,0.00033972,6]
[327705110,1716330659839,-2733.01,0.00033972,6]
[327705111,1716330659850,-500.0,0.00033972,6]
[327705112,1716330659859,-500.0,0.00033972,6]
[327705113,1716330659870,-1035.99,0.00033972,6]
[327705114,1716330659879,-1127.8,0.00033972,6]
[327705115,1716330659889,-500.0,0.00033972,6]
[327705116,1716330659899,-954.96,0.00033972,6]
[327705117,1716330659908,-602.8,0.00033972,6]
[327705118,1716330659918,-500.0,0.00033972,6]
[327705119,1716330659929,-2414.4,0.00033972,6]
[327705120,1716330659939,-500.0,0.00033972,6]
[327705121,1716330659949,-150.0,0.00033988,120]
[327705122,1716330659959,-500.0,0.00034,5]
[327705123,1716330659968,-3448.54434018,0.00034,2]
[327705124,1716330659978,-2666.66666676,0.00034012,6]
[327705125,1716330659988,-2666.66666666,0.00034012,6]
[327705126,1716330659998,-203.0,0.0003402,2]
[327705127,1716330660008,-476.32964977,0.00034024,4]
[327705128,1716330660018,-1197.41049514,0.00034047,6]
[327705129,1716330660028,-157.052206,0.00034048,36]
[327705130,1716330660039,-158.03224443,0.00034073,7]
[327705131,1716330660049,-156.014629,0.00034132,2]
[327705132,1716330660059,-358.582094,0.00034132,2]
[327705133,1716330660069,-3096.80864,0.00034132,2]
[327705134,1716330660079,-185.708529,0.00034132,2]
[327705135,1716330660089,-9295.35583,0.00034132,2]
[327705136,1716330660099,-3842.892483,0.00034132,2]
[327705137,1716330660109,-9094.62006,0.00034132,2]
[327705138,1716330660118,-172.190305,0.00034132,2]
[327705139,1716330660128,-172.227896,0.00034132,2]
[327705140,1716330660137,-6063.998608,0.00034132,2]
[327705141,1716330660147,-3588.658871,0.00034132,2]
[327705142,1716330660158,-3036.470444,0.00034132,2]
[327705143,1716330660168,-4002.016228,0.00034132,2]
[327705144,1716330660178,-1871.119962,0.00034132,2]
[327705145,1716330660188,-460.48553823,0.000342,2]
[327705146,1716330660198,-5132.0,0.00034227,2]
[327705147,1716330660208,-1465.0,0.00034227,2]
[327705148,1716330660220,-3880.70724069,0.00034245,2]
[327705149,1716330660230,-549.24,0.00034246,6]
[327705150,1716330660241,-642.14471638,0.00034246,6]
[327705151,1716330660252,-500.0,0.00034246,6]
[327705152,1716330660262,-587.1,0.00034246,6]
[327705153,1716330660272,-1028.32,0.00034246,6]
[327705154,1716330660282,-628.86,0.00034246,6]
[327705155,1716330660294,-500.0,0.00034246,6]
[327705156,1716330660305,-698.35,0.00034246,6]
[327705157,1716330660316,-817.87,0.00034246,6]
[327705158,1716330660327,-1529.98,0.00034246,6]
[327705159,1716330660338,-7703.78,0.00034246,6]
[327705160,1716330660348,-4254.81,0.00034246,6]
[327705161,1716330660361,-306.79618398,0.00034246,6]
[327705162,1716330660373,-1676.45,0.00034246,6]
[327705163,1716330660383,-1312.87,0.00034246,6]
[327705164,1716330660393,-698.95,0.00034246,6]
[327705165,1716330660561,-579.22,0.00034246,6]
[327705166,1716330660571,-1366.16,0.00034246,6]
[327705167,1716330660581,-577.7,0.00034246,6]
[327705168,1716330660590,-500.0,0.00034246,6]
[327705169,1716330660600,-500.0,0.00034246,6]
[327705170,1716330660611,-576.47,0.00034246,6]
[327705171,1716330660621,-576.85,0.00034246,6]
[327705172,1716330660630,-4027.79,0.00034246,6]
[327705173,1716330660640,-3926.42,0.00034246,6]
[327705174,1716330660650,-500.0,0.00034246,6]
[327705175,1716330660660,-500.0,0.00034246,6]
[327705176,1716330660669,-500.0,0.00034246,6]
[327705177,1716330660679,-500.0,0.00034246,6]
[327705178,1716330660689,-503.6456606,0.00034246,6]
[327705179,1716330660698,-500.0,0.00034246,6]
[327705180,1716330660708,-559.94,0.00034246,6]
[327705181,1716330660717,-500.0,0.00034246,6]
[327705182,1716330660727,-500.0,0.00034246,6]
[327705183,1716330660736,-787.25,0.00034246,6]
[327705184,1716330660746,-1823.06,0.00034246,6]
[327705185,1716330660755,-618.35,0.00034246,6]
[327705186,1716330660764,-1467.8,0.00034246,6]
[327705187,1716330660774,-962.2,0.00034246,6]
[327705188,1716330660784,-645.4,0.00034246,6]
[327705189,1716330660796,-500.0,0.00034246,6]
[327705190,1716330660806,-500.0,0.00034246,6]
[327705191,1716330660817,-500.0,0.00034246,6]
[327705192,1716330660827,-1188.21,0.00034246,6]
[327705193,1716330660837,-579.42,0.00034246,6]
[327705194,1716330660846,-562.99,0.00034246,6]
[327705195,1716330660856,-630.75,0.00034246,6]
[327705196,1716330660867,-500.0,0.00034246,6]
[327705197,1716330660878,-690.64,0.00034246,6]
[327705198,1716330660888,-2844.34,0.00034246,6]
[327705199,1716330660899,-500.0,0.00034246,6]
[327705200,1716330660909,-756.94,0.00034246,6]
[327705201,1716330660919,-500.0,0.00034246,6]
[327705202,1716330660929,-878.11,0.00034246,6]
[327705203,1716330660939,-500.0,0.00034246,6]
[327705204,1716330660948,-533.1,0.00034246,6]
[327705205,1716330660958,-500.0,0.00034246,6]
[327705206,1716330660968,-2346.81,0.00034246,6]
[327705207,1716330660978,-1061.92,0.00034246,6]
[327705208,1716330660988,-500.0,0.00034246,6]
[327705209,1716330660998,-603.1,0.00034246,6]
[327705210,1716330661007,-678.87,0.00034246,6]
[327705211,1716330661017,-683.48,0.00034246,6]
[327705212,1716330661026,-1131.45,0.00034246,6]
[327705213,1716330661038,-10687.0,0.00034246,6]
[327705214,1716330661048,-2733.01,0.00034246,6]
[327705215,1716330661058,-500.0,0.00034246,6]
[327705216,1716330661068,-500.0,0.00034246,6]
[327705217,1716330661078,-1035.99,0.00034246,6]
[327705218,1716330661087,-1127.8,0.00034246,6]
[327705219,1716330661097,-500.0,0.00034246,6]
[327705220,1716330661106,-954.96,0.00034246,6]
[327705221,1716330661116,-602.8,0.00034246,6]
[327705222,1716330661126,-500.0,0.00034246,6]
[327705223,1716330661136,-2414.4,0.00034246,6]
[327705224,1716330661145,-500.0,0.00034246,6]
[327705225,1716330661155,-157.052206,0.00034248,36]
[327705226,1716330661165,-183.54652,0.00034272,2]
[327705227,1716330661174,-399.04,0.000343,2]